Cogmind - Beta 11 X5 *** ADVENTURER MODE // 2021.06.27 @ 08:07:54 Player: Sardaukar Result: Destroyed by H-88 Terminator with KE Penetrator Performance ------------- Evolutions (8) 4000 Regions Visited (12) 2400 Robots Destroyed (113) 565 Value Destroyed (4241) 4241 Prototype IDs (34) 680 Alien Tech Used (0) 0 Bonus (1188) 1188 TOTAL SCORE: 13074 Bonus ------- High Alert Combat Kills 881 Follower Combat Kills 7 Aligned with FarCom 300 Cogmind --------- Core Integrity 0/1450 Matter 22/300 Energy 99/100 System Corruption 4% Temperature Cool (0) Movement Core (50) Location -2/Research Parts ------- > --- POWER (2) -------- (None) > --- PROPULSION (6) --- (None) > --- UTILITY (12) ----- (None) > --- WEAPON (3) ------- (None) > --- INVENTORY (5) ---- Cooled Impulse Thruster Advanced Reaction Control System Enhanced Quantum Rifle Enhanced Force Lance Peak State ------------ > --- POWER ------------ Light Fission Core > --- PROPULSION ------- VTOL Module Cooled Nuclear Pulse Thruster Impulse Thruster Impulse Thruster Q-thruster Cooled Impulse Thruster > --- UTILITY ---------- Lightpack 2.0 Large Battery Machine Analyzer Advanced Signal Interpreter Transmission Jammer Improved Light Armor Plating Shield Generator Hacking Suite > --- WEAPON ----------- Smartbomb Launcher > --- INVENTORY -------- Light Antimatter Reactor Antigrav System Antigrav Array Experimental Power Amplifier Cryofiber Web Improved Terrain Scanner Improved Terrain Scanner Precision Energy Filter Quantum Capacitor Advanced ECM Suite Experimental Thermal Shield Force Field System Guard Drone Bay Chronowheel Lightning Gun KE Penetrator Helical Railgun Smartbomb Launcher [Rating: 121] Favorites ----------- Power Light Ion Engine Engine Light Ion Engine Power Core Micro Nuclear Core Reactor Light Antimatter Reactor Propulsion Aluminum Leg Leg Aluminum Leg Flight Unit VTOL Module Utility Large Storage Unit Device Sensor Array Storage Large Storage Unit Processor Advanced Signal Interpreter Hackware Hacking Suite Protection Hardened Medium Armor Plating Weapon Light Assault Rifle Energy Gun Lightning Gun Energy Cannon Latent Energy Streamer Ballistic Gun Light Assault Rifle Ballistic Cannon Mass Driver Launcher Tiamat Missile Launcher Special Weapon Plasma Cutter Slashing Weapon Falx Piercing Weapon Enhanced Force Lance Build | -11 -10 -9 -9 -9 -8 -8 -7 -6 -5 -4 -3 -2 ------- Run | Scr Mat Mat Min Exi Min Mat Fac Fac Fac Fac Res Res Slots Evolved 16 | . . 2 . . . 2 2 2 2 2 2 2 Power 1 | . . . . . . . 1 . . . . . Propulsion 4 | . . 1 . . . 1 . . 1 . 1 . Utility 10 | . . 1 . . . 1 1 2 1 2 1 1 Weapon 1 | . . . . . . . . . . . . 1 Parts Attached 197 | . 18 5 2 7 2 24 14 22 49 21 21 12 Power 25 | . 1 1 2 1 1 2 4 1 6 3 1 2 Engine 13 | . 1 1 2 1 1 2 3 . . . 1 1 Core 10 | . . . . . . . 1 1 6 2 . . Reactor 2 | . . . . . . . . . . 1 . 1 Propulsion 45 | . 6 1 . . . 7 2 6 13 2 5 3 Treads . | . . . . . . . . . . . . . Leg 29 | . 6 1 . . . 6 2 6 8 . . . Wheel . | . . . . . . . . . . . . . Hover . | . . . . . . . . . . . . . Flight 16 | . . . . . . 1 . . 5 2 5 3 Utility 64 | . 6 1 . 3 1 9 6 6 10 7 9 6 Device 36 | . 2 1 . 1 . 2 4 3 5 7 6 5 Storage 9 | . 2 . . 2 1 1 . 1 . . 2 . Processor 10 | . 2 . . . . 2 2 2 2 . . . Hackware 2 | . . . . . . 1 . . 1 . . . Protection 7 | . . . . . . 3 . . 2 . 1 1 Artifact . | . . . . . . . . . . . . . Weapon 63 | . 5 2 . 3 . 6 2 9 20 9 6 1 Energy Gun 2 | . . . . . . . 1 . . 1 . . Energy Cannon 14 | . . 1 . 1 . 2 . 4 6 . . . Ballistic Gun 31 | . 5 1 . 2 . 4 1 5 9 1 3 . Ballistic Cannon 2 | . . . . . . . . . 2 . . . Launcher 5 | . . . . . . . . . 2 . 3 . Special Weapon 1 | . . . . . . . . . . 1 . . Impact Weapon . | . . . . . . . . . . . . . Slashing Weapon 7 | . . . . . . . . . 1 6 . . Piercing Weapon 1 | . . . . . . . . . . . . 1 Special Melee Weapon . | . . . . . . . . . . . . . Unidentified Prototypes 8 | . . . . . . 1 . . 2 . 3 2 Corrupted Parts 5 | . . . . . . . . 1 4 . . . System Corruption 44 | . . . . . . . . 4 40 . . . Parts Lost 56 | . . . 1 . . 6 4 1 24 4 12 4 Power 10 | . . . 1 . . . 1 . 5 1 2 . Propulsion 21 | . . . . . . 2 1 1 10 2 2 3 Utility 16 | . . . . . . 2 2 . 4 . 7 1 Weapon 9 | . . . . . . 2 . . 5 1 1 . Highest Loss Streak 12 | . . . 1 . . 3 4 1 12 2 6 3 Average Slot Usage (%) 85 | . 84 91 98 99 100 91 97 80 72 62 64 35 Engine 7 | . 13 11 9 10 11 9 10 6 2 . . . Core 1 | . . . . . . . 3 6 5 5 3 . Leg 24 | . 25 27 33 33 33 31 30 20 20 . . . Flight 2 | . . . . . . . . . 3 23 23 14 Device 11 | . 9 19 22 12 6 . 7 24 14 8 13 11 Storage 13 | . 4 11 11 20 26 17 10 6 5 5 5 . Processor 3 | . 3 . . . . 3 9 1 5 10 7 3 Hackware 1 | . . . . . . 7 . . . 5 4 3 Protection 1 | . . . . . . 4 7 . 1 . 2 1 Ballistic Gun 14 | . 26 21 22 17 22 17 13 12 4 . . . Naked Turns 64 | . 18 . . . . . . . . . . 46 Heaviest Build 75 | . 29 31 31 39 31 45 60 43 75 24 31 16 Greatest Support 100 | 3 20 30 30 30 30 50 58 80 100 25 43 37 Greatest Overweight (x) 10 | . 9 1 1 1 1 10 1 1 5 . . . Average Overweight (x) . | . . . . . . . . . . . . . Largest Inventory Capacity 25 | 5 15 15 15 15 15 15 15 25 25 25 25 5 Average Capacity 16 | 5 7 15 15 15 15 15 15 24 25 25 17 5 Most Carried 25 | 5 5 2 6 10 10 14 15 15 22 22 25 5 Average Carried 9 | 3 . 1 3 8 9 9 12 9 15 18 15 3 Final Capacity 25 | 5 15 15 15 15 15 15 15 25 25 25 5 5 Final Carried 21 | 5 2 1 6 10 10 12 15 14 16 21 3 4 Class Distribution -------------------- 39% | Scavenger-Mutant 30% | Mutant 15% | Scavenger-Skirmisher 6% | Hacker-Sprinter 5% | Hacker-Mutant Dominant Class ---------------- Mutant | -10/Materials Mutant | -9/Materials Mutant | -9/Mines Mutant | -9/Exiles Scavenger-Skirmisher | -8/Mines Scavenger-Mutant | -8/Materials Scavenger-Mutant | -7/Factory Scavenger-Mutant | -6/Factory Mutant | -5/Factory Hacker-Sprinter | -4/Factory Hacker-Sprinter | -3/Research Hacker-Mutant | -2/Research Resources | -11 -10 -9 -9 -9 -8 -8 -7 -6 -5 -4 -3 -2 ----------- Run | Scr Mat Mat Min Exi Min Mat Fac Fac Fac Fac Res Res Matter Collected 3149 | 200 153 180 87 14 140 256 322 476 988 118 183 32 Remotely . | . . . . . . . . . . . . . Salvage Created 4656 | . 153 153 124 . 148 578 463 596 2133 30 278 . Parts 254 | . 7 10 10 . 17 42 21 28 94 2 23 . Haulers Intercepted 7 | . 1 . . . . 3 1 . 1 . 1 . Recyclers Shooed 4 | . . 1 . . . 1 . 1 1 . . . Parts Field Recycled . | . . . . . . . . . . . . . Retrieved Matter . | . . . . . . . . . . . . . Parts Self-Destructed . | . . . . . . . . . . . . . Prevented . | . . . . . . . . . . . . . Kills | -11 -10 -9 -9 -9 -8 -8 -7 -6 -5 -4 -3 -2 ------- Run | Scr Mat Mat Min Exi Min Mat Fac Fac Fac Fac Res Res Combat Hostiles Destroyed 76 | . 3 2 4 . 6 9 7 5 30 . 10 . Guns 32 | . 3 2 4 . 6 5 7 2 3 . . . Cannons 5 | . . . . . . . . . 5 . . . AOE 33 | . . . . . . 4 . 2 17 . 10 . Classes Destroyed 15 | . 4 2 . . 1 2 2 2 2 . . . Worker 14 | . . 2 . . 1 1 1 7 . . 2 . Builder 3 | . . . . . . . . 1 2 . . . Tunneler 2 | . . . . . 2 . . . . . . . Hauler 7 | . 1 . . . . 3 1 . 1 . 1 . Recycler 2 | . . . . . . . . 1 1 . . . Operator 2 | . . . . . . 2 . . . . . . Watcher 7 | . 1 . . . . 1 . 1 3 1 . . Swarmer 24 | . 2 . 2 . 6 3 . . 2 . 9 . Saboteur 2 | . . . . . . . . . 2 . . . Grunt 29 | . 1 . 2 . . 3 3 3 16 . 1 . Brawler 1 | . . . . . . . 1 . . . . . Sentry 7 | . . 2 . . . 1 1 1 2 . . . Specialist 3 | . . . . . . . . . 3 . . . Hunter 6 | . . . . . . 2 . 1 3 . . . Programmer 4 | . . . . . . . 2 . 2 . . . Best Kill Streak 9 | . 2 3 2 . 4 6 4 6 9 1 5 . Combat Bots Only 6 | . 2 1 2 . 3 4 3 3 6 . 5 . Max Kills in Single Turn 6 | . 1 1 2 . 1 4 1 6 4 1 3 . Gunslinging 1 | . . . 1 . . . . . . . . . Exploded 4 | . . . . . . 3 . 1 4 . 3 . Melee . | . . . . . . . . . . . . . Uniques/NPCs Destroyed . | . . . . . . . . . . . . . Combat | -11 -10 -9 -9 -9 -8 -8 -7 -6 -5 -4 -3 -2 -------- Run | Scr Mat Mat Min Exi Min Mat Fac Fac Fac Fac Res Res Damage Taken 9819 | . 65 220 90 . 182 637 733 163 4205 543 1044 1937 Core 2718 | . 10 11 9 . 55 132 77 25 489 146 310 1454 Absorbed by Shields 168 | . . . . . . . 47 59 20 . 42 . Core Remaining (%) 83 | 100 96 . . . 81 76 89 97 51 87 76 . Volleys Fired 247 | . 19 22 9 . 25 41 38 21 52 4 16 . Largest 2 | . 2 2 2 . 2 2 2 2 2 1 1 . Hottest 117 | . 40 76 40 . 40 88 83 85 117 55 46 . Shots Fired 446 | . 38 40 18 . 50 73 76 43 88 4 16 . Gun 380 | . 38 37 18 . 50 71 76 39 37 4 10 . Cannon 55 | . . 3 . . . 2 . 4 46 . . . Launcher 11 | . . . . . . . . . 5 . 6 . Special . | . . . . . . . . . . . . . Kinetic 402 | . 38 37 18 . 50 71 66 39 70 3 10 . Thermal . | . . . . . . . . . . . . . Explosive 11 | . . . . . . . . . 5 . 6 . Electromagnetic 33 | . . 3 . . . 2 10 4 13 1 . . Robot Hit Streak 29 | . 7 17 10 . 12 15 24 29 6 2 7 . Robot Miss Streak 5 | . 3 5 1 . 5 2 1 3 3 1 . . Penetration Max 1 | . . . . . . . 1 . 1 . . . Secondary Targets 5 | . . . 2 . 2 . 1 . . . . . Max Gunslinging Chain 1 | . . . 1 . 1 . 1 . . . . . Shots Hit Robots 295 | . 23 31 13 . 28 60 65 28 40 2 5 . Core Hits 206 | . 8 10 6 . 16 28 19 25 75 1 18 . Critical Kills . | . . . . . . . . . . . . . Critical Parts Destroyed 3 | . . . . . . . 1 . 2 . . . Critical Strikes 4 | . . . . . . . 1 . 3 . . . Destroy 3 | . . . . . . . 1 . 2 . . . Blast 1 | . . . . . . . . . 1 . . . Melee Attacks 10 | . . . . . . . . . 1 9 . . Impact . | . . . . . . . . . . . . . Slashing 10 | . . . . . . . . . 1 9 . . Piercing . | . . . . . . . . . . . . . Sneak Attacks . | . . . . . . . . . . . . . Combat Hostiles . | . . . . . . . . . . . . . Follow-up Attacks . | . . . . . . . . . . . . . Damage Inflicted 13009 | . 252 325 122 . 230 1348 1324 1728 6051 131 1492 6 Guns 3728 | . 252 270 122 . 226 493 1320 541 448 56 . . Cannons 822 | . . 55 . . . 16 . 14 737 . . . Explosions 8445 | . . . . . . 839 . 1173 4866 75 1492 . Melee . | . . . . . . . . . . . . . Ramming 14 | . . . . . 4 . 4 . . . . 6 Kinetic 4222 | . 252 270 122 . 226 493 1143 541 1153 22 . . Thermal 945 | . . . . . . 99 . 407 364 75 . . Explosive 2869 | . . . . . . . . 147 1230 . 1492 . Electromagnetic 4959 | . . 55 . . . 756 177 633 3304 34 . . Impact . | . . . . . . . . . . . . . Slashing . | . . . . . . . . . . . . . Piercing . | . . . . . . . . . . . . . Highest Corruption 90 | . . . . . . 6 10 16 90 . . 4 Average Corruption 19 | . . . . . . 3 5 10 41 . . 2 Corruption Purged . | . . . . . . . . . . . . . Effects 92 | . . . . . . 6 8 19 57 . . 2 Message Errors 21 | . . . . . . 2 1 7 10 . . 1 Matter Fused 18 | . . . . . . . 3 5 10 . . . Heat Flow Errors 9 | . . . . . . 2 2 1 4 . . . Energy Discharges 9 | . . . . . . . . 2 6 . . 1 Parts Rejected 2 | . . . . . . . . . 2 . . . Data Loss (minor) 7 | . . . . . . 1 1 1 4 . . . Data Loss (major) 5 | . . . . . . . 1 1 3 . . . Misfires 3 | . . . . . . . . 2 1 . . . Misdirections 10 | . . . . . . . . . 10 . . . Weapon Failures 8 | . . . . . . 1 . . 7 . . . Overload Shots . | . . . . . . . . . . . . . Overflow Damage 568 | . . . . . . 143 . 50 359 8 8 . Projectiles 30 | . . . . . . . . . 30 . . . Explosions 538 | . . . . . . 143 . 50 329 8 8 . Melee . | . . . . . . . . . . . . . Knockbacks 6 | . . . . . . . . . 6 . . . Impact . | . . . . . . . . . . . . . Kinetic 6 | . . . . . . . . . 6 . . . Secondary . | . . . . . . . . . . . . . Self-Inflicted Damage 381 | . . . . . . 51 . . 227 31 70 2 Shots 9 | . . . . . . 1 . . 4 1 3 . Rammed 2 | . . . . . . . . . . . . 2 Targets Rammed 5 | . . . . . 2 . 1 . . . . 2 Kicked 3 | . . . . . 2 . 1 . . . . . Crushed . | . . . . . . . . . . . . . Highest Temperature 371 | . 6 89 9 . . 143 371 73 346 7 6 . Average Temperature 114 | . 6 34 6 . . 32 177 45 118 6 2 . Received Heat Transfer 1524 | . 18 135 48 . 18 189 168 40 552 88 151 117 Effects 6 | . . . . . . . 4 . 2 . . . Shutdowns 2 | . . . . . . . 2 . . . . . Energy Bleed 1 | . . . . . . . 1 . . . . . Interference 1 | . . . . . . . . . 1 . . . Short Circuit 1 | . . . . . . . . . 1 . . . Damage (minor) 1 | . . . . . . . 1 . . . . . Siege Activations . | . . . . . . . . . . . . . Robots Corrupted 8 | . . . . . . . . 1 7 . . . Combat Hostiles 6 | . . . . . . . . 1 5 . . . Parts Fried 30 | . . 1 . . . 4 . 4 21 . . . Impact Corruptions . | . . . . . . . . . . . . . Robots Melted . | . . . . . . . . . . . . . Combat Hostiles . | . . . . . . . . . . . . . Parts Melted 1 | . . . 1 . . . . . . . . . Heat Transferred 650 | . . . . . . 100 . 300 200 50 . . Parts Sabotaged . | . . . . . . . . . . . . . Parts Stolen . | . . . . . . . . . . . . . Parts Stripped . | . . . . . . . . . . . . . Power Chain Reactions 2 | . . . . . . . . . 1 1 . . Missiles Intercepted . | . . . . . . . . . . . . . Latent Energy Used 3084 | . . . . . . 400 . 759 1925 . . . LE Corruption 50 | . . . . . . 6 . 12 32 . . . Alert | -11 -10 -9 -9 -9 -8 -8 -7 -6 -5 -4 -3 -2 ------- Run | Scr Mat Mat Min Exi Min Mat Fac Fac Fac Fac Res Res Peak Influence 1506 | . 95 100 129 . 80 271 179 470 1506 1084 930 683 Initial 570 | . . . 33 . . 26 105 55 198 570 488 450 Average 289 | . 49 42 99 . 30 135 97 171 869 768 622 543 Maximum Alert Level 4 | . . . . . . 1 . 2 4 3 3 2 Low Security (%) 61 | 100 100 100 100 . 100 62 100 59 . . . . Level 1 9 | . . . . . . 37 . 33 11 . 2 . Level 2 16 | . . . . . . . . 6 34 38 71 100 Level 3 5 | . . . . . . . . . 8 61 25 . Level 4 7 | . . . . . . . . . 44 . . . Level 5 . | . . . . . . . . . . . . . High Security . | . . . . . . . . . . . . . Max Security . | . . . . . . . . . . . . . Squads Dispatched 25 | . . . . . . 3 2 3 7 4 3 3 Investigation 8 | . . . . . . 1 . 1 1 3 2 . Extermination 6 | . . . . . . . 2 1 2 . . 1 Reinforcement 8 | . . . . . . 2 . 1 2 1 1 1 Assault 3 | . . . . . . . . . 2 . . 1 Garrison . | . . . . . . . . . . . . . Intercept . | . . . . . . . . . . . . . Construction Impeded 3 | . . . . . . . . 1 1 . 1 . Haulers Reinforced . | . . . . . . . . . . . . . Cargo Convoy Interrupts 1 | . . . . . . . . . 1 . . . Stealth | -11 -10 -9 -9 -9 -8 -8 -7 -6 -5 -4 -3 -2 --------- Run | Scr Mat Mat Min Exi Min Mat Fac Fac Fac Fac Res Res Distress Signals 7 | . 1 . . . . 1 . 2 . . 1 2 Communications Jammed 6 | . . . . . . . . . . . 4 2 Distress Signals 6 | . . . . . . . . . . . 4 2 Times Spotted 197 | . 9 2 6 . 9 16 7 8 47 28 33 32 Peak Tracking Total 23 | . 3 2 3 . 4 4 5 3 11 11 13 23 Tactical Retreats 16 | . . . . . . . 1 . 3 6 4 2 Traps | -11 -10 -9 -9 -9 -8 -8 -7 -6 -5 -4 -3 -2 ------- Run | Scr Mat Mat Min Exi Min Mat Fac Fac Fac Fac Res Res Traps Triggered 9 | . 2 3 . . . . . 1 2 1 . . Indirectly . | . . . . . . . . . . . . . Trap Hack Attempts . | . . . . . . . . . . . . . Triggered . | . . . . . . . . . . . . . Disarmed . | . . . . . . . . . . . . . Reprogrammed . | . . . . . . . . . . . . . Reused . | . . . . . . . . . . . . . Traps Extracted . | . . . . . . . . . . . . . Installed . | . . . . . . . . . . . . . Triggered . | . . . . . . . . . . . . . Machines | -11 -10 -9 -9 -9 -8 -8 -7 -6 -5 -4 -3 -2 ---------- Run | Scr Mat Mat Min Exi Min Mat Fac Fac Fac Fac Res Res Machines Disabled 56 | . . . . . . 5 . 29 19 . 3 . Max in Single Turn 19 | . . . . . . 2 . 19 5 . 2 . Machines Sabotaged . | . . . . . . . . . . . . . Garrisons Compromised . | . . . . . . . . . . . . . Overloaded Fab Kills . | . . . . . . . . . . . . . Fab Network Shutdowns . | . . . . . . . . . . . . . Hacking | -11 -10 -9 -9 -9 -8 -8 -7 -6 -5 -4 -3 -2 --------- Run | Scr Mat Mat Min Exi Min Mat Fac Fac Fac Fac Res Res Machines Accessed 37 | . 4 1 . 5 . 1 4 1 4 8 5 4 Terminals 23 | . 4 1 . . . 1 3 . 1 5 5 3 Fabricators 4 | . . . . . . . 1 . 1 1 . 1 Repair Stations 5 | . . . . . . . . 1 2 2 . . Recycling Units . | . . . . . . . . . . . . . Scanalyzers . | . . . . . . . . . . . . . Garrison Access . | . . . . . . . . . . . . . Total Hacks 87 | . 11 3 . 7 . 7 9 2 10 18 13 7 Successful 47 | . 4 1 . 7 . 4 5 2 6 8 6 4 Failed 40 | . 7 2 . . . 3 4 . 4 10 7 3 Catastrophic 6 | . 2 . . . . . . . 2 1 1 . Database Lockouts . | . . . . . . . . . . . . . Manual 34 | . 9 2 . 1 . 3 1 . 2 9 5 2 Terminals 60 | . 11 3 . . . 7 6 . 4 11 13 5 Fabricators 9 | . . . . . . . 3 . 3 1 . 2 Repair Stations 11 | . . . . . . . . 2 3 6 . . Recycling Units . | . . . . . . . . . . . . . Scanalyzers . | . . . . . . . . . . . . . Garrison Access . | . . . . . . . . . . . . . Terminal Hacks 30 | . 4 1 . 7 . 4 3 . 2 3 5 1 Record 8 | . . . . 6 . . 1 . . 1 . . Part Schematic 1 | . 1 . . . . . . . . . . . Robot Schematic 1 | . . . . . . . 1 . . . . . Robot Analysis 3 | . 1 . . . . 1 1 . . . . . Prototype ID Bank 2 | . 1 . . . . . . . . . 1 . Open Door 1 | . . . . . . . . . . 1 . . Level Access Points 1 | . . . . . . 1 . . . . . . Terminal Index 3 | . 1 . . . . . . . . 1 1 . Alert Level 4 | . . 1 . . . 1 . . 1 . 1 . Unreport Threat 1 | . . . . . . . . . . . 1 . Locate Traps 1 | . . . . . . . . . 1 . . . Reinforcement Status 1 | . . . . . . . . . . . . 1 Recall Investigation 1 | . . . . . . . . . . . 1 . Zone Layout 1 | . . . . . . 1 . . . . . . EX-Prototype ID Bank 1 | . . . . 1 . . . . . . . . Fabricator Hacks 6 | . . . . . . . 2 . 1 1 . 2 Network Status 1 | . . . . . . . . . . 1 . . Load Schematic 2 | . . . . . . . 1 . . . . 1 Build 3 | . . . . . . . 1 . 1 . . 1 Repair Station Hacks 6 | . . . . . . . . 2 2 2 . . Scan Component 4 | . . . . . . . . 1 1 2 . . Repair 2 | . . . . . . . . 1 1 . . . Recycling Unit Hacks . | . . . . . . . . . . . . . Scanalyzer . | . . . . . . . . . . . . . Garrison Access Hacks . | . . . . . . . . . . . . . Unauthorized Hacks 5 | . . . . . . . . . 1 2 1 1 Terminals 5 | . . . . . . . . . 1 2 1 1 Track 1 | . . . . . . . . . 1 . . . Botnet 4 | . . . . . . . . . . 2 1 1 Fabricators . | . . . . . . . . . . . . . Repair Stations . | . . . . . . . . . . . . . Recycling Units . | . . . . . . . . . . . . . Scanalyzers . | . . . . . . . . . . . . . Garrison Access . | . . . . . . . . . . . . . Data Cores Recovered 1 | . . . . . . 1 . . . . . . Used 1 | . . . . . . 1 . . . . . . Hacking Detections 26 | . 3 . . . . 1 3 1 4 6 5 3 Full Trace Events 7 | . 1 . . . . 1 . . . 3 2 . Feedback Events 1 | . . . . . . 1 . . . . . . Hackware Fried 1 | . . . . . . 1 . . . . . . Feedback Blocked . | . . . . . . . . . . . . . Robot Schematics Acquired 1 | . . . . . . . 1 . . . . . Robots Built 2 | . . . . . . . 1 . . . . 1 Matter 306 | . . . . . . . 153 . . . . 153 Time 67 | . . . . . . . 40 . . . . 27 Total Robot Build Rating 2 | . . . . . . . 1 . . . . 1 Part Schematics Acquired 1 | . 1 . . . . . . . . . . . Parts Built . | . . . . . . . . . . . . . Matter 234 | . . . . . . . . . 234 . . . Time 58 | . . . . . . . . . 58 . . . Total Part Build Rating . | . . . . . . . . . . . . . Parts Repaired 2 | . . . . . . . . 1 1 . . . Time 82 | . . . . . . . . 44 38 . . . Parts Recycled . | . . . . . . . . . . . . . Recycled Matter . | . . . . . . . . . . . . . Retrieved Matter . | . . . . . . . . . . . . . Retrieved Components . | . . . . . . . . . . . . . Parts Scanalyzed . | . . . . . . . . . . . . . Part Schematics Acquired . | . . . . . . . . . . . . . Parts Damaged . | . . . . . . . . . . . . . Bothacking | -11 -10 -9 -9 -9 -8 -8 -7 -6 -5 -4 -3 -2 ------------ Run | Scr Mat Mat Min Exi Min Mat Fac Fac Fac Fac Res Res Used RIF Installer . | . . . . . . . . . . . . . Robots Hacked . | . . . . . . . . . . . . . Non-combat . | . . . . . . . . . . . . . Combat . | . . . . . . . . . . . . . Robot Hacks Applied . | . . . . . . . . . . . . . Relay Couplers Released 4 | . . . . . . . . . 4 . . . Programmers 4 | . . . . . . . . . 4 . . . Robots Rewired . | . . . . . . . . . . . . . Allies Hacked . | . . . . . . . . . . . . . Hacks Repelled . | . . . . . . . . . . . . . Allies | -11 -10 -9 -9 -9 -8 -8 -7 -6 -5 -4 -3 -2 -------- Run | Scr Mat Mat Min Exi Min Mat Fac Fac Fac Fac Res Res Total Allies 3 | . . . 1 . . . 1 . . . . 1 Largest Group 1 | . . . 1 . . . 1 . . . . 1 Highest-Rated Group 31 | . . . 31 . . . 10 . . . . 10 Highest-Rated Ally 31 | . . . 31 . . . 10 . . . . 10 Total Orders 19 | . . . . . . . 2 3 . 4 . 10 FOLLOW 1 | . . . . . . . 1 . . . . . TUNNEL 11 | . . . . . . . 1 . . . . 10 EXPLORE 6 | . . . . . . . . 3 . 3 . . RETURN 1 | . . . . . . . . . . 1 . . Ally Attacks 2 | . . . 2 . . . . . . . . . Total Damage 40 | . . . 40 . . . . . . . . . Kills 1 | . . . 1 . . . . . . . . . Allies Corrupted . | . . . . . . . . . . . . . Allies Melted . | . . . . . . . . . . . . . Intel | -11 -10 -9 -9 -9 -8 -8 -7 -6 -5 -4 -3 -2 ------- Run | Scr Mat Mat Min Exi Min Mat Fac Fac Fac Fac Res Res Robot Analysis Total 3 | . 1 . . . . 1 1 . . . . . Derelict Logs Recovered . | . . . . . . . . . . . . . Drone Launches 5 | . . . . . . . . 3 . 2 . . Drone Recoveries 3 | . . . . . . . . 1 . 2 . . Exploration | -11 -10 -9 -9 -9 -8 -8 -7 -6 -5 -4 -3 -2 ------------- Run | Scr Mat Mat Min Exi Min Mat Fac Fac Fac Fac Res Res Turns Passed 7931 | 23 470 395 127 1074 1504 687 777 789 1108 323 236 418 Spaces Moved 6079 | 36 292 165 55 734 742 286 437 326 1019 747 591 649 Core 165 | 36 35 . . . . 1 . . 4 . . 89 Treads . | . . . . . . . . . . . . . Legs 3535 | . 257 165 55 734 742 285 437 326 534 . . . Wheels . | . . . . . . . . . . . . . Hover . | . . . . . . . . . . . . . Flight 2379 | . . . . . . . . . 481 747 591 560 Fastest Speed 21 | 50 50 120 120 120 120 120 120 120 23 23 21 35 Average Speed 98 | 50 129 165 153 143 145 168 132 166 82 25 26 45 Slowest Speed 550 | 50 500 200 200 200 200 550 200 200 355 27 37 50 Overloaded Moves . | . . . . . . . . . . . . . Propulsion Burnouts . | . . . . . . . . . . . . . Robots Hopped 18 | . . . . . . . . . 3 7 3 5 Cave-ins Triggered . | . . . . . . . . . . . . . Time Travels 1 | . . . . . . . . . . . 1 . Exploration Rate (%) 32 | 3 54 20 19 92 83 29 12 16 24 20 21 24 Regions Visited 12 Branch Regions 3 Pre-discovered Areas 1 | . . . 1 . . . . . . . . . Known Exits Taken 5 | . . . . . . 1 . 1 1 1 1 . Unknown Exits Taken 7 | 1 1 1 1 1 1 . 1 . . . . . Scrap Searched 1 | . . . . . 1 . . . . . . . Spaces Dug 25 | . . . . . . . . . 7 9 9 . Terrain Destroyed 489 | . . . . . . 76 3 111 194 28 77 . Melee 10 | . . . . . . . . . 1 9 . . Projectile 31 | . . . . . . 1 3 1 15 1 10 . AOE 448 | . . . . . . 75 . 110 178 18 67 . Terrain Rammed . | . . . . . . . . . . . . . Walls Destroyed . | . . . . . . . . . . . . . Machines Disabled . | . . . . . . . . . . . . . Actions | -11 -10 -9 -9 -9 -8 -8 -7 -6 -5 -4 -3 -2 --------- Run | Scr Mat Mat Min Exi Min Mat Fac Fac Fac Fac Res Res Total 7587 | 40 351 251 82 755 1123 430 566 532 1179 855 653 770 Wait 862 | . 8 56 9 3 350 61 51 145 38 41 5 95 Move 6031 | 35 291 164 54 733 741 285 436 325 1012 732 584 639 Hop 18 | . . . . . . . . . 3 7 3 5 Pick Up 83 | 5 3 2 7 6 1 5 13 6 14 5 10 6 Fast Attach 68 | . 10 1 . . . 11 6 4 16 5 7 8 Attach 84 | . 7 2 2 5 1 10 6 5 18 12 12 4 Detach 48 | . 4 . . 2 . 6 2 4 5 14 8 3 Swap 45 | . 1 2 . 2 1 3 2 13 15 4 2 . Drop 68 | . 8 2 1 4 2 8 11 9 5 4 6 8 Fire 247 | . 19 22 9 . 25 41 38 21 52 4 16 . Melee 10 | . . . . . . . . . 1 9 . . Ram 2 | . . . . . . . . . . . . 2 Kick 3 | . . . . . 2 . 1 . . . . . Crush . | . . . . . . . . . . . . . Escape Stasis 18 | . . . . . . . . . . 18 . . Rewire . | . . . . . . . . . . . . . Trap . | . . . . . . . . . . . . . Miscellaneous . | . . . . . . . . . . . . . Route ------- -11/Scrapyard -10/Materials -9/Materials -9/Mines -9/Exiles -8/Mines -8/Materials (discovered 3 exits: *Fac x3) -7/Factory -6/Factory -5/Factory -4/Factory (discovered 2 exits: *Res / [*Ext]) -3/Research -2/Research (discovered 1 exit: *Tes) History --------- Turn | Location | Event 8 | -11/Scrapyard | Discovered new exit (range 16) 24 | -11/Scrapyard | Entered Materials 309 | -10/Materials | Discovered new exit (range 4) 318 | -10/Materials | Build established: Mutant 494 | -10/Materials | Entered another Materials area 494 | -9/Materials | Evolved 2 slots: Propulsion x1, Utility x1 788 | -9/Materials | Discovered new exit (range 16) 889 | -9/Materials | Entered Mines 902 | -9/Mines | Escorted by a lone wolf Derelict 922 | -9/Mines | Learned location of Storage (-9) 1012 | -9/Mines | Deemed a non-threat by the Exiles lab entrance 1012 | -9/Mines | Discovered new exit (range 5) 1016 | -9/Mines | Entered Exiles 1054 | -9/Exiles | Met 8R-AWN 1076 | -9/Exiles | Met EX-HEX 1249 | -9/Exiles | Met EX-BIN 1262 | -9/Exiles | Aligned with FarCom system 1263 | -9/Exiles | Given EX-Vault access code 1293 | -9/Exiles | Opened EX-Vault 1306 | -9/Exiles | Found Latent Energy Streamer 1341 | -9/Exiles | Found Lightpack 2.0 1464 | -9/Exiles | Warned to stay clear of 0b10 Research branches 1564 | -9/Exiles | Found Chronowheel 1707 | -9/Exiles | Met EX-DEC 1800 | -9/Exiles | Discovered new exit (range 14) 1903 | -9/Exiles | Visited The Gauntlet 2028 | -9/Exiles | Build established: Scavenger-Mutant 2090 | -9/Exiles | Stole three prototypes: Lightpack 2.0, Chronowheel, Latent Energy Streamer 2090 | -9/Exiles | Entered Mines 2389 | -8/Mines | Build established: Scavenger-Skirmisher 3238 | -8/Mines | Build established: Scavenger-Mutant 3477 | -8/Mines | Discovered new exit (range 5) 3594 | -8/Mines | Entered Materials 3594 | -8/Materials | Evolved 2 slots: Propulsion x1, Utility x1 3778 | -8/Materials | Lost 3 parts (2n1w) 4262 | -8/Materials | Discovered new exit (range 5) 4262 | -8/Materials | Identified exit to Factory 4262 | -8/Materials | Hacking Suite fried by hacking feedback 4281 | -8/Materials | Entered Factory 4281 | -7/Factory | Evolved 2 slots: Power x1, Utility x1 4283 | -7/Factory | FarCom data flow suspended 4692 | -7/Factory | Fabricated T-07 Excavator? 4739 | -7/Factory | Discovered new exit (range 20) 4877 | -7/Factory | System corruption reached 10% 4901 | -7/Factory | Lost 4 parts (1p1n2u) 5058 | -7/Factory | Entered another Factory area 5058 | -6/Factory | Evolved 2 slots: Utility x2 5528 | -6/Factory | System corruption reached 10% 5605 | -6/Factory | Discovered new exit (range 53) 5752 | -6/Factory | Repaired Gauss Rifle 5842 | -6/Factory | Identified exit to Factory 5847 | -6/Factory | Entered another Factory area 5847 | -5/Factory | Evolved 2 slots: Propulsion x1, Utility x1 6092 | -5/Factory | Repaired Imp. Terrain Scanner 6147 | -5/Factory | First assault squad dispatched 6164 | -5/Factory | System corruption reached 10% 6209 | -5/Factory | Build established: Scavenger-Skirmisher 6466 | -5/Factory | Cargo convoy interrupted 6470 | -5/Factory | System corruption reached 30% 6560 | -5/Factory | Lost 6 parts (3p2n1u) 6627 | -5/Factory | Lost 4 parts (3n1w) 6644 | -5/Factory | Build established: Mutant 6753 | -5/Factory | Lost 12 parts (2p4n2u4w) 6951 | -5/Factory | Discovered new exit (range 13) 6955 | -5/Factory | Identified exit to Factory 6955 | -5/Factory | Entered another Factory area 6955 | -4/Factory | Evolved 2 slots: Utility x2 7106 | -4/Factory | Discovered new exit (range 6) 7217 | -4/Factory | Found Quantum Capacitor 7224 | -4/Factory | Discovered new exit (range 15) 7247 | -4/Factory | Build established: Hacker-Sprinter 7278 | -4/Factory | Identified exit to Research 7278 | -4/Factory | Entered Research 7278 | -3/Research | Evolved 2 slots: Propulsion x1, Utility x1 7297 | -3/Research | Found Prototype Device 7341 | -3/Research | Spotted B-86 Titan 7401 | -3/Research | Activated Chronowheel 7401 | -3/Research | Spacetime reconverged on an earlier point 7477 | -3/Research | Identified Exp. Thermal Shield 7489 | -3/Research | Lost 5 parts (1p4u) 7504 | -3/Research | Discovered new exit (range 16) 7513 | -3/Research | Identified exit to Research 7514 | -3/Research | Entered another Research area 7514 | -2/Research | Evolved 2 slots: Utility x1, Weapon x1 7539 | -2/Research | Lost 6 parts (1p1n3u1w) 7612 | -2/Research | Fabricated T-07 Excavator (x1) 7697 | -2/Research | Found Enh. Force Lance 7755 | -2/Research | Build established: Hacker-Mutant 7783 | -2/Research | Discovered new exit (range 11) 7792 | -2/Research | Identified exit to Testing 7797 | -2/Research | First assault squad dispatched 7829 | -2/Research | Spotted B-90 Cyclops 7886 | -2/Research | Released all parts (8) 7895 | -2/Research | Core integrity fell below 50% 7908 | -2/Research | Core integrity fell below 20% 7915 | -2/Research | Lost 3 parts (2n1u) 7932 | -2/Research | Destroyed by H-88 Terminator with KE Penetrator Last Messages --------------- 07898_ K-01 Serf collects debris. 07898_ Penetrated by Slug. 07898_ W-44 Eye suffers critical hit (Destroy). 07899_ U-05 Engineer lays Concrete. 07899_ K-01 Serf collects debris. 07902_ Slug penetrates Wall. 07903_ Penetrated by Slug. 07914_ K-01 Serf cleans the Antimatter Diverter. 07917_ ALERT: Cargo convoy en route, clear transfer corridor. 07917_ K-01 Serf cleans the Antimatter Diverter. 07919_ Slug penetrates Wall. 07928_ FBZLWSSHUOUZRQ&0B8IT>R= Z9UH 07929_ Catalytron disabled. 07930_ Penetrated by Slug. 07932_ K-01 Serf cleans the Antimatter Diverter. 07932_ C-30 ARC bursts open, deploying its payload. 07932_ H-88 Terminator unfolds itself. 07932_ Slug penetrates K-01 Serf. 07932_ K-01 Serf destroyed. 07932_ Penetrated by Slug. Map ----- +----------------------------------------------------+ | ?????????????????????????# # """""???????????? | | ?????????????????????????# + """""???????????? | | ?????????????????????????# # """""???????????? | | ?????????????????????????# # ??????????? | | ?????????????????????????# #? #????????? | | ?##??????????????????????# #?#########????????? | | ## ##????????????????????# #??????????????????? | | ????????????????????# #??????????????????? | | =! ########+############ #??????????????????? | | =! # #??????????????????? | | ! # ! #??????????????????? | | # #??????????????????? | | " """ #??????????????????? | | " " # """ #??????????????????? | | "T" # ^"""k #??????????????????? | | """ # s #??????????????????? | | # ^s #??????????????????? | | + #??????????????????? | | ###### ""s #??????????????????? | | ?????# "" #??????????????????? | | ?????#### ### ^ "" #??????????????????? | | ????????# #?# #??????????????????? | | ????????# #?# ##########?????????? | | ????????# #?# ????????? | | ????????# #?# ????????? | | ????????# #?# @ ????????? | | ????????# #?# = ????????? | | ????????# #?############### =%! #??????????? | | ????????# #???????????????? * #??????????? | | ????????? ????????????????? #??????????? | | ????????? ??????????????????? h #??????????? | | ????????? ????????????????????""" %ho#??????????? | | ????????? ????????????????????""" #??????????? | | ????????? ?????????????????????"" ???????????? | | ????????? ??????????????????????????? ???????????? | | ????????? ???????????????????????????????????????? | | ?????????????????????????????????????????????????? | | ?????????????????????????????????????????????????? | | ?????????????????????????????????????????????????? | | ?????????????????????????????????????????????????? | | ?????????????????????????????????????????????????? | | ?????????????????????????????????????????????????? | | ?????????????????????????????????????????????????? | | ?????????????????????????????????????????????????? | | ?????????????????????????????????????????????????? | | ?????????????????????????????????????????????????? | | ?????????????????????????????????????????????????? | | ?????????????????????????????????????????????????? | | ?????????????????????????????????????????????????? | | ?????????????????????????????????????????????????? | +----------------------------------------------------+ Best States ------------- Heat Dissipation 51 Energy Generation 30 Energy Capacity 505 Matter Stores 450 Matter Capacity 450 Sight Range 20 Robot Scan Range 16 Terrain Scan Range 16 Terrain Scan Density 10 ECM Strength 2 Jamming Range 8 Power Amplification 40 Additional Mass Support 6 Base Temperature (-) 100 Corruption Prevention 12 Armor Coverage 600 Resistance: KI 40 Resistance: TH 20 Resistance: EX 20 Resistance: EM 20 Resistance: I 20 Resistance: S 20 Resistance: P 20 Power Shielding 66 Thermal Conversion 30 Evasion (%) 74 Targeting Accuracy 5 Armor Integrity Analysis 20 Energy Filtering 50 Salvage Targeting 1 Offensive Hacking 20 Item Schematics ----------------- Med. Storage Unit | -10/Materials | Hacked Robot Schematics ------------------ T-07 Excavator | -7/Factory | Hacked Fabricated ------------ T-07 Excavator | x1 | -7/Factory T-07 Excavator | x1 | -2/Research Alien Tech Used ----------------- None Achievements -------------- Can't Catch Me My Command Is Your Wish Part-time Excavator Z1$+NX3F=JRE3_ZNQR Challenges ------------ None Game ------ Seed ThunderMetafieldRecalibrator Manual? 0 Play Time 04:08:57 Cumulative 99.5 hours Start 2021.06.22 @ 22:56:30 End 2021.06.27 @ 08:07:54 Sessions 10 Manual Loads 0 Difficulty Adventurer Special Mode None Game No. 16 Rogue 0 Adventurer 10 Explorer 6 Win Type - Total 2 Types 1/0/1/0/0/0/0/0/0 Lore% 40 Gallery% 49 Achievement% 40 Wizard Run 0 Options --------- ASCII 0 Keyboard 1 Movement Vi Keybinds 0 Fullscreen 2 Font 20/Terminus Map View 66x50 Tactical HUD 1 Map Filters NONE Filters NONE Steam 1 RUN: 90fb1a25-012f-4277-80a2-7bfa9943a3c9